fUSD/lending_fUSD_20260319
["ID","MTS","AMOUNT","RATE_DAILY","PERIOD"]
[408574640,1773900647105,-337.281442,0.00014247,2]
[408574641,1773900647115,-337.281442,0.00014247,2]
[408574642,1773900647126,-337.281442,0.00014247,2]
[408574643,1773900647138,-151.0,0.00014247,2]
[408574644,1773900647151,-151.0,0.00014247,2]
[408574645,1773900647161,-151.0,0.00014247,2]
[408574646,1773900647172,-151.0,0.00014247,2]
[408574647,1773900647183,-151.0,0.00014247,2]
[408574648,1773900647192,-151.0,0.00014247,2]
[408574649,1773900647202,-151.0,0.00014247,2]
[408574650,1773900647211,-242.716718,0.00014247,2]
[408574651,1773900647222,-1000.0,0.00014262,2]
[408574652,1773900647232,-500.0,0.00014263,2]
[408574653,1773900647243,-151.0,0.00014263,2]
[408574654,1773900647254,-274.891825,0.00014263,7]
[408574655,1773900647264,-4647.7432193,0.00014264,2]
[408574656,1773900647276,-1773.686515,0.00014309,7]
[408574657,1773900647287,-297.0,0.00014317,3]
[408574658,1773900647297,-500.0,0.00014318,2]
[408574659,1773900647307,-183.91624356,0.00014318,2]
[408574660,1773900647316,-379.3,0.00014324,2]
[408574661,1773900647326,-2000.0,0.00014333,2]
[408574662,1773900647335,-2949.70777062,0.00014357,2]
[408574663,1773900647345,-195.57880179,0.00014371,2]
[408574664,1773900647355,-693.89191589,0.00014371,2]
[408574665,1773900647364,-500.0,0.00014373,2]
[408574666,1773900647374,-3592.53,0.00014384,2]
[408574667,1773900647383,-161.0,0.000144,2]
[408574668,1773900647393,-2402.0,0.000144,2]
[408574669,1773900647406,-1215.0,0.00014409,2]
[408574670,1773900647416,-924.0,0.00014409,2]
[408574671,1773900647427,-3758.0,0.00014419,2]
[408574672,1773900647436,-6006.0,0.00014419,2]
[408574673,1773900647446,-500.0,0.00014428,2]
[408574674,1773900647456,-2000.0,0.00014433,2]
[408574675,1773900647466,-879.01,0.00014455,2]
[408574676,1773900647476,-1117.74120847,0.00014466,2]
[408574677,1773900647487,-500.0,0.00014483,2]
[408574678,1773900647498,-1567.0,0.000145,2]
[408574679,1773900647508,-330.0,0.00014514,2]
[408574680,1773900647518,-2000.0,0.00014533,2]
[408574681,1773900647528,-250.0,0.00014552,2]
[408574682,1773900647538,-360.51,0.00014558,2]
[408574683,1773900647548,-2949.70777063,0.00014576,2]
[408574684,1773900647559,-182.298033,0.00014584,7]
[408574685,1773900647569,-500.0,0.00014603,2]
[408574686,1773900647579,-207.9004718,0.00014633,2]
[408574687,1773900647589,-2000.0,0.00014633,2]
[408574688,1773900647599,-1117.74120847,0.00014685,2]
[408574689,1773900647609,-17006.49303477,0.00014715,2]
[408574690,1773900647619,-201.167,0.00014716,2]
[408574691,1773900647629,-1567.0,0.0001472,2]
[408574692,1773900647639,-161.0,0.0001472,2]
[408574693,1773900647648,-2599.79649702,0.0001472,2]
[408574694,1773900648167,-500.0,0.00013695,2]
[408574695,1773900648176,-500.0,0.00013695,2]
[408574696,1773900648186,-500.0,0.00013695,2]
[408574697,1773900648196,-500.0,0.00013695,2]
[408574698,1773900648205,-500.0,0.00013695,2]
[408574699,1773900648214,-500.0,0.00013695,2]
[408574700,1773900648224,-500.0,0.00013695,2]
[408574701,1773900648233,-320.05942927,0.00013695,2]
[408574702,1773900648243,-500.0,0.00013695,2]
[408574703,1773900648253,-500.0,0.00013695,2]
[408574704,1773900648262,-500.0,0.00013695,2]
[408574705,1773900648271,-500.0,0.00013695,2]
[408574706,1773900648281,-500.0,0.00013695,2]
[408574707,1773900648290,-206.79155437,0.00013695,2]
[408574708,1773900648300,-500.0,0.00013695,2]
[408574709,1773900648309,-500.0,0.00013695,2]
[408574710,1773900648319,-500.0,0.00013695,2]
[408574711,1773900648328,-500.0,0.00013695,2]
[408574712,1773900648337,-500.0,0.00013695,2]
[408574713,1773900648347,-500.0,0.00013695,2]
[408574714,1773900648357,-500.0,0.00013695,2]
[408574715,1773900648367,-451.64334977,0.00013695,2]
[408574716,1773900648376,-500.0,0.00013695,2]
[408574717,1773900648386,-150.0,0.00013695,2]
[408574718,1773900648396,-500.0,0.00013695,2]
[408574719,1773900648405,-500.0,0.00013695,2]
[408574720,1773900648415,-500.0,0.00013695,2]
[408574721,1773900648424,-238.49988002,0.00013695,2]
[408574722,1773900648434,-150.0,0.00013695,2]
[408574723,1773900648443,-2000.0,0.00014311,2]
[408574724,1773900648453,-414.915,0.00014419,2]
[408574725,1773900648462,-2009.20350298,0.0001472,2]
[408574726,1773900648471,-850.0,0.00014721,2]
[408574727,1773900648482,-850.0,0.00014721,2]
[408574728,1773900648496,-850.0,0.00014721,2]
[408574729,1773900648506,-850.0,0.00014721,2]
[408574730,1773900648516,-850.0,0.00014721,2]
[408574731,1773900648526,-850.0,0.00014721,2]
[408574732,1773900648537,-850.0,0.00014721,2]
[408574733,1773900648546,-850.0,0.00014721,2]
[408574734,1773900648556,-850.0,0.00014721,2]
[408574735,1773900648565,-442.0,0.00014721,2]
[408574736,1773900648575,-150.0,0.00014721,2]
[408574737,1773900648585,-150.0,0.00014721,2]
[408574738,1773900648595,-234.0,0.00014721,2]
[408574739,1773900648605,-879.01,0.00014729,2]
[408574740,1773900648615,-2000.0,0.00014733,2]
[408574741,1773900648625,-1500.0,0.00014768,2]
[408574742,1773900648635,-1020.9482015,0.00014768,2]
[408574743,1773900648644,-1500.0,0.00014768,2]
[408574744,1773900648654,-512.51857515,0.00014768,2]
[408574745,1773900648664,-1500.0,0.00014768,2]
[408574746,1773900648674,-500.0,0.00014773,2]
[408574747,1773900648684,-606.98804759,0.00014773,2]
[408574748,1773900648694,-500.0,0.00014773,2]
[408574749,1773900648704,-500.0,0.00014773,2]
[408574750,1773900648713,-500.0,0.00014773,2]
[408574751,1773900648723,-500.0,0.00014773,2]
[408574752,1773900648733,-500.0,0.00014773,2]
[408574753,1773900648743,-500.0,0.00014773,2]
[408574754,1773900648753,-500.0,0.00014773,2]
[408574755,1773900648764,-500.0,0.00014773,2]
[408574756,1773900648774,-500.0,0.00014773,2]
[408574757,1773900648784,-219.836,0.00014782,2]
[408574758,1773900648794,-162.351,0.00014782,2]
[408574759,1773900648804,-250.0,0.00014782,2]
[408574760,1773900648815,-150.139,0.00014782,2]
[408574761,1773900648825,-193.143,0.00014782,2]
[408574762,1773900648838,-165.725,0.00014782,2]
[408574763,1773900649122,-214.469,0.00014782,2]
[408574764,1773900649160,-250.0,0.00014782,2]
[408574765,1773900649170,-179.0,0.00014782,2]
[408574766,1773900649179,-238.201,0.00014782,2]
[408574767,1773900649189,-1350.033,0.00014782,2]
[408574768,1773900649201,-3512.0,0.00014782,2]
[408574769,1773900649212,-1044.0,0.00014782,2]
[408574770,1773900649223,-150.369,0.00014782,2]
[408574771,1773900649234,-1261.0,0.00014782,2]
[408574772,1773900649244,-1500.0,0.00014795,2]
[408574773,1773900649254,-1500.0,0.00014795,2]
[408574774,1773900649263,-301.7381184,0.00014795,2]
[408574775,1773900649274,-1500.0,0.00014795,2]
[408574776,1773900649284,-1005.49650087,0.00014795,2]
[408574777,1773900649294,-1500.0,0.00014795,2]
[408574778,1773900649303,-1500.0,0.00014795,2]
[408574779,1773900649318,-1500.0,0.00014795,2]
[408574780,1773900649328,-1220.11454399,0.00014795,2]
[408574781,1773900649337,-1500.0,0.00014795,2]
[408574782,1773900649347,-1500.0,0.00014795,2]
[408574783,1773900649357,-1500.0,0.00014795,2]
[408574784,1773900649366,-1500.0,0.00014795,2]
[408574785,1773900649376,-1500.0,0.00014795,2]
[408574786,1773900649385,-1500.0,0.00014795,2]
[408574787,1773900649395,-1500.0,0.00014795,2]
[408574788,1773900649404,-1500.0,0.00014795,2]
[408574789,1773900649413,-846.68886321,0.00014795,2]
[408574790,1773900649422,-1047.2319377,0.00014795,2]
[408574791,1773900649431,-1500.0,0.00014795,2]
[408574792,1773900649441,-1500.0,0.00014795,2]
[408574793,1773900649450,-1500.0,0.00014795,2]
[408574794,1773900649460,-1500.0,0.00014795,2]
[408574795,1773900649469,-1500.0,0.00014795,2]
[408574796,1773900649478,-1176.85294544,0.00014795,2]
[408574797,1773900649487,-845.938546,0.00014795,2]
[408574798,1773900649497,-845.938546,0.00014795,2]
[408574799,1773900649509,-603.024672,0.00014795,2]
[408574800,1773900649518,-151.0,0.00014795,2]
[408574801,1773900649528,-845.938546,0.00014795,2]
[408574802,1773900649537,-603.024672,0.00014795,2]
[408574803,1773900649547,-845.938546,0.00014795,2]
[408574804,1773900649557,-603.024672,0.00014795,2]
[408574805,1773900649566,-603.024672,0.00014795,2]
[408574806,1773900649575,-151.0,0.00014795,2]
[408574807,1773900649585,-151.0,0.00014795,2]
[408574808,1773900649594,-241.616519,0.00014795,2]
[408574809,1773900649604,-151.0,0.00014795,2]
[408574810,1773900649613,-9680.222096,0.00014795,2]
[408574811,1773900649622,-504.420128,0.00014795,2]
[408574812,1773900649631,-151.0,0.00014795,2]
[408574813,1773900649640,-770.064578,0.00014795,2]
[408574814,1773900649650,-151.0,0.00014795,2]
[408574815,1773900649660,-9680.222096,0.00014795,2]
[408574816,1773900649670,-504.420128,0.00014795,2]
[408574817,1773900649679,-770.064578,0.00014795,2]
[408574818,1773900649689,-9680.222096,0.00014795,2]
[408574819,1773900649698,-504.420128,0.00014795,2]
[408574820,1773900649709,-9680.222096,0.00014795,2]
[408574821,1773900649720,-770.064578,0.00014795,2]
[408574822,1773900649730,-504.420128,0.00014795,2]
[408574823,1773900649739,-770.064578,0.00014795,2]
[408574824,1773900649749,-277.136968,0.00014795,2]
[408574825,1773900649758,-1291.432253,0.00014795,2]
[408574826,1773900649767,-277.136968,0.00014795,2]
[408574827,1773900649776,-1291.432253,0.00014795,2]
[408574828,1773900649786,-277.136968,0.00014795,2]
[408574829,1773900649796,-151.0,0.00014795,2]
[408574830,1773900649806,-1291.432253,0.00014795,2]
[408574831,1773900649815,-151.0,0.00014795,2]
[408574832,1773900649824,-277.136968,0.00014795,2]
[408574833,1773900649834,-1291.432253,0.00014795,2]
[408574834,1773900649843,-151.0,0.00014795,2]
[408574835,1773900649853,-151.0,0.00014795,2]
[408574836,1773900649862,-151.0,0.00014795,2]
[408574837,1773900649871,-151.0,0.00014795,2]
[408574838,1773900649881,-606.713391,0.00014795,2]
[408574839,1773900649892,-151.0,0.00014795,2]
[408574840,1773900649902,-606.713391,0.00014795,2]
[408574841,1773900649911,-5262.820055,0.00014795,2]
[408574842,1773900649920,-912.434485,0.00014795,2]
[408574843,1773900649930,-606.713391,0.00014795,2]
[408574844,1773900649939,-5262.820055,0.00014795,2]
[408574845,1773900649949,-233.477044,0.00014795,2]
[408574846,1773900649960,-912.434485,0.00014795,2]
[408574847,1773900649971,-606.713391,0.00014795,2]
[408574848,1773900649981,-5262.820055,0.00014795,2]
[408574849,1773900649991,-233.477044,0.00014795,2]
[408574850,1773900650000,-912.434485,0.00014795,2]
[408574851,1773900650010,-5262.820055,0.00014795,2]
[408574852,1773900650019,-233.477044,0.00014795,2]
[408574853,1773900650029,-151.0,0.00014795,2]
[408574854,1773900650039,-912.434485,0.00014795,2]
[408574855,1773900650048,-233.477044,0.00014795,2]
[408574856,1773900650063,-151.0,0.00014795,2]
[408574857,1773900650073,-151.0,0.00014795,2]
[408574858,1773900650082,-151.0,0.00014795,2]
[408574859,1773900650092,-760.206708,0.00014795,2]
[408574860,1773900650101,-151.0,0.00014795,2]
[408574861,1773900650120,-760.206708,0.00014795,2]
[408574862,1773900650131,-178.05707,0.00014795,2]
[408574863,1773900650140,-151.0,0.00014795,2]
[408574864,1773900650152,-760.206708,0.00014795,2]
[408574865,1773900650162,-151.0,0.00014795,2]
[408574866,1773900650172,-178.05707,0.00014795,2]
[408574867,1773900650182,-760.206708,0.00014795,2]
[408574868,1773900650191,-178.05707,0.00014795,2]
[408574869,1773900650201,-151.0,0.00014795,2]
[408574870,1773900650210,-178.05707,0.00014795,2]
[408574871,1773900650220,-151.0,0.00014795,2]
[408574872,1773900650230,-151.0,0.00014795,2]
[408574873,1773900650241,-492.914894,0.00014795,2]
[408574874,1773900650250,-151.0,0.00014795,2]
[408574875,1773900650261,-151.0,0.00014795,2]
[408574876,1773900650270,-492.914894,0.00014795,2]
[408574877,1773900650280,-1370.881087,0.00014795,2]
[408574878,1773900650290,-248.98918,0.00014795,2]
[408574879,1773900650300,-492.914894,0.00014795,2]
[408574880,1773900650310,-151.0,0.00014795,2]
[408574881,1773900650320,-1370.881087,0.00014795,2]
[408574882,1773900650330,-186.812431,0.00014795,2]
[408574883,1773900650340,-492.914894,0.00014795,2]
[408574884,1773900650350,-151.0,0.00014795,2]
[408574885,1773900650360,-1370.881087,0.00014795,2]
[408574886,1773900650369,-186.812431,0.00014795,2]
[408574887,1773900650378,-591.831781,0.00014795,2]
[408574888,1773900650388,-157.544761,0.00014795,2]
[408574889,1773900650397,-151.0,0.00014795,2]
[408574890,1773900650406,-591.831781,0.00014795,2]
[408574891,1773900650417,-186.812431,0.00014795,2]
[408574892,1773900650428,-151.0,0.00014795,2]
[408574893,1773900650439,-591.831781,0.00014795,2]
[408574894,1773900650449,-186.812431,0.00014795,2]
[408574895,1773900650459,-151.0,0.00014795,2]
[408574896,1773900650468,-591.831781,0.00014795,2]
[408574897,1773900650478,-1370.881087,0.00014795,2]
[408574898,1773900650488,-1329.857896,0.00014795,2]
[408574899,1773900650497,-3270.096041,0.00014795,2]
[408574900,1773900650507,-1329.857896,0.00014795,2]
[408574901,1773900650516,-500.0,0.00014799,2]
[408574902,1773900650525,-500.0,0.00014799,2]
[408574903,1773900650535,-549.26309957,0.00014799,2]
[408574904,1773900650544,-9535.42,0.000148,2]
[408574905,1773900650556,-8552.64,0.000148,2]
[408574906,1773900650565,-3665.66,0.000148,2]
[408574907,1773900650575,-577417.61,0.000148,2]
[408574908,1773900650587,-151.0,0.000148,2]
[408574909,1773900650599,-151.0,0.000148,2]
[408574910,1773900650610,-151.0,0.000148,2]
[408574911,1773900650620,-151.0,0.000148,2]
[408574912,1773900650631,-1951.875944,0.000148,2]
[408574913,1773900650642,-1951.875944,0.000148,2]
[408574914,1773900650652,-151.0,0.000148,2]
[408574915,1773900650666,-1951.875944,0.000148,2]
[408574916,1773900650676,-1951.875944,0.000148,2]
[408574917,1773900650686,-2635.334568,0.000148,2]
[408574918,1773900650696,-2635.334568,0.000148,2]
[408574919,1773900650706,-1651.820882,0.000148,2]
[408574920,1773900650715,-225.106884,0.000148,2]
[408574921,1773900650725,-2635.334568,0.000148,2]
[408574922,1773900650734,-1651.820882,0.000148,2]
[408574923,1773900650745,-225.106884,0.000148,2]
[408574924,1773900650756,-1651.820882,0.000148,2]
[408574925,1773900650767,-2289.291087,0.000148,2]
[408574926,1773900650778,-2635.334568,0.000148,2]
[408574927,1773900650790,-225.106884,0.000148,2]
[408574928,1773900650800,-1651.820882,0.000148,2]
[408574929,1773900650810,-2289.291087,0.000148,2]
[408574930,1773900650821,-185.420485,0.000148,2]
[408574931,1773900650830,-225.106884,0.000148,2]
[408574932,1773900650841,-2289.291087,0.000148,2]
[408574933,1773900650851,-185.420485,0.000148,2]
[408574934,1773900650861,-3178.349364,0.000148,2]
[408574935,1773900650871,-2289.291087,0.000148,2]
[408574936,1773900650880,-185.420485,0.000148,2]
[408574937,1773900650894,-3178.349364,0.000148,2]
[408574938,1773900650905,-185.420485,0.000148,2]
[408574939,1773900650915,-151.0,0.000148,2]
[408574940,1773900650926,-3178.349364,0.000148,2]
[408574941,1773900650936,-2061.693744,0.000148,2]
[408574942,1773900650946,-151.0,0.000148,2]
[408574943,1773900650957,-3178.349364,0.000148,2]
[408574944,1773900650969,-2061.693744,0.000148,2]
[408574945,1773900650978,-2612.845104,0.000148,2]
[408574946,1773900650988,-189.426167,0.000148,2]
[408574947,1773900650998,-2612.845104,0.000148,2]
[408574948,1773900651008,-2061.693744,0.000148,2]
[408574949,1773900651017,-151.0,0.000148,2]
[408574950,1773900651027,-2612.845104,0.000148,2]
[408574951,1773900651036,-151.0,0.000148,2]
[408574952,1773900651046,-2061.693744,0.000148,2]
[408574953,1773900651055,-2612.845104,0.000148,2]
[408574954,1773900651065,-151.0,0.000148,2]
[408574955,1773900651074,-175.630658,0.000148,2]
[408574956,1773900651083,-1349.424833,0.000148,2]
[408574957,1773900651093,-1349.424833,0.000148,2]
[408574958,1773900651103,-1349.424833,0.000148,2]
[408574959,1773900651113,-1349.424833,0.000148,2]
[408574960,1773900651123,-1531.756993,0.000148,2]
[408574961,1773900651132,-151.0,0.000148,2]
[408574962,1773900651142,-1531.756993,0.000148,2]
[408574963,1773900651151,-1531.756993,0.000148,2]
[408574964,1773900651161,-690.254152,0.000148,2]
[408574965,1773900651170,-1531.756993,0.000148,2]
[408574966,1773900651179,-690.254152,0.000148,2]
[408574967,1773900651189,-690.254152,0.000148,2]
[408574968,1773900651198,-319.911065,0.000148,2]
[408574969,1773900651207,-690.254152,0.000148,2]
[408574970,1773900651221,-319.911065,0.000148,2]
[408574971,1773900651231,-319.911065,0.000148,2]
[408574972,1773900651240,-319.911065,0.000148,2]
[408574973,1773900651250,-1252.0,0.00014816,2]
[408574974,1773900651259,-2402.0,0.0001482,2]
[408574975,1773900651269,-179.0,0.00014825,2]
[408574976,1773900651279,-150.0,0.00014833,2]
[408574977,1773900651288,-2000.0,0.00014833,2]
[408574978,1773900651298,-445.6,0.00014835,2]
[408574979,1773900651308,-282.0,0.00014859,2]
[408574980,1773900651318,-1149.12,0.000149,2]
[408574981,1773900651327,-170.3354006,0.000149,2]
[408574982,1773900651337,-445.6,0.00014901,2]
[408574983,1773900651347,-1117.74120847,0.00014904,2]
[408574984,1773900651356,-719.56591678,0.00014919,2]
[408574985,1773900651366,-621.0,0.00014932,2]
[408574986,1773900651375,-2000.0,0.00014933,2]
[408574987,1773900651385,-426.68378316,0.00014946,2]
[408574988,1773900651395,-181.5975,0.00014946,30]
[408574989,1773900651404,-445.6,0.00014967,2]
[408574990,1773900651415,-150.0,0.00014976,2]
[408574991,1773900651424,-5156.3532739,0.00015,2]
[408574992,1773900651434,-337.281442,0.00015,2]
[408574993,1773900651443,-337.281442,0.00015,2]
[408574994,1773900651452,-337.281442,0.00015,2]
[408574995,1773900651462,-337.281442,0.00015,2]
[408574996,1773900651472,-151.0,0.00015,2]
[408574997,1773900651482,-151.0,0.00015,2]
[408574998,1773900651492,-151.0,0.00015,2]
[408574999,1773900651502,-151.0,0.00015,2]
[408575000,1773900651511,-151.0,0.00015,2]
[408575001,1773900651520,-151.0,0.00015,2]
[408575002,1773900651530,-203.716314,0.00015,2]
[408575003,1773900651539,-500.0,0.00015,2]
[408575004,1773900651548,-500.0,0.00015,2]
[408575005,1773900651559,-500.0,0.00015,2]
[408575006,1773900651568,-500.0,0.00015,2]
[408575007,1773900651577,-500.0,0.00015,2]
[408575008,1773900651587,-500.0,0.00015,2]
[408575009,1773900651600,-4095.59,0.00015,2]
[408575010,1773900651610,-500.0,0.00015,2]
[408575011,1773900651620,-612.39,0.00015,2]
[408575012,1773900651629,-500.0,0.00015,2]
[408575013,1773900651638,-500.0,0.00015,2]
[408575014,1773900651648,-500.0,0.00015,2]
[408575015,1773900651657,-500.0,0.00015,2]
[408575016,1773900651667,-500.0,0.00015,2]
[408575017,1773900651677,-500.0,0.00015,2]
[408575018,1773900651687,-423.72,0.00015,2]
[408575019,1773900651696,-802.52,0.00015,2]
[408575020,1773900651706,-2402.0,0.00015,2]
[408575021,1773900651716,-500.0,0.00015,2]
[408575022,1773900651725,-500.0,0.00015,2]
[408575023,1773900651735,-500.0,0.00015,2]
[408575024,1773900651744,-500.0,0.00015,2]
[408575025,1773900651755,-500.0,0.00015,2]
[408575026,1773900651764,-500.0,0.00015,2]
[408575027,1773900651774,-882.52,0.00015003,2]
[408575028,1773900651783,-152.0,0.00015017,3]
[408575029,1773900651793,-503.0,0.00015021,3]
[408575030,1773900651803,-2000.0,0.00015033,2]
[408575031,1773900651812,-2402.0,0.0001504,2]
[408575032,1773900651823,-3592.53,0.00015068,2]
[408575033,1773900651832,-4647.7432193,0.00015082,2]
[408575034,1773900651842,-150.0,0.00015096,2]
[408575035,1773900651852,-8391.77885906,0.00015105,2]
[408575036,1773900651861,-5000.0,0.00015105,2]
[408575037,1773900651871,-5000.0,0.00015105,2]
[408575038,1773900651882,-5000.0,0.00015105,2]
[408575039,1773900651893,-150.0,0.00015118,2]
[408575040,1773900651903,-621.0,0.00015122,2]
[408575041,1773900651912,-3609.92329877,0.00015133,2]
[408575042,1773900651923,-2000.0,0.00015133,2]
[408575043,1773900651933,-1567.0,0.0001514,2]
[408575044,1773900651942,-2402.0,0.0001514,2]
[408575045,1773900651951,-250.0,0.00015153,2]
[408575046,1773900651962,-250.0,0.00015153,2]
[408575047,1773900651971,-250.0,0.00015153,2]
[408575048,1773900651980,-250.0,0.00015153,2]
[408575049,1773900651990,-250.0,0.00015153,2]
[408575050,1773900652004,-250.0,0.00015153,2]
[408575051,1773900652014,-250.0,0.00015153,2]
[408575052,1773900652024,-250.0,0.00015153,2]
[408575053,1773900652034,-290.0,0.00015153,2]
[408575054,1773900652045,-2000.0,0.00015233,2]
[408575055,1773900652055,-621.0,0.00015283,2]
[408575056,1773900652064,-1000.0,0.00015291,2]
[408575057,1773900652074,-469.0,0.00015304,2]
[408575058,1773900652084,-2000.0,0.00015316,2]
[408575059,1773900652093,-2000.0,0.00015316,2]
[408575060,1773900652103,-2000.0,0.00015316,2]
[408575061,1773900652113,-857.17487336,0.00015321,2]
[408575062,1773900652122,-1000.0,0.00015321,2]
[408575063,1773900652132,-1000.0,0.00015321,2]
[408575064,1773900652141,-1000.0,0.00015321,2]
[408575065,1773900652151,-1000.0,0.00015321,2]
[408575066,1773900652160,-1000.0,0.00015321,2]
[408575067,1773900652170,-1000.0,0.00015321,2]
[408575068,1773900652179,-1000.0,0.00015321,2]
[408575069,1773900652188,-1000.0,0.00015321,2]
[408575070,1773900652198,-1000.0,0.00015321,2]
[408575071,1773900652207,-150.0,0.00015321,2]
[408575072,1773900652216,-500.0,0.0001533,2]
[408575073,1773900652225,-500.0,0.0001533,2]
[408575074,1773900652234,-2000.0,0.00015333,2]
[408575075,1773900652244,-2000.0,0.00015342,2]
[408575076,1773900652253,-2000.0,0.00015342,2]
[408575077,1773900652262,-578.73590627,0.00015342,2]
[408575078,1773900652271,-232.68961964,0.00015342,2]
[408575079,1773900652281,-455.72571989,0.00015342,2]
[408575080,1773900652291,-2000.0,0.00015342,2]
[408575081,1773900652300,-2000.0,0.00015342,2]
[408575082,1773900652309,-2000.0,0.00015342,2]
[408575083,1773900652318,-2000.0,0.00015342,2]
[408575084,1773900652328,-2000.0,0.00015342,2]
[408575085,1773900652337,-931.42701484,0.00015342,2]
[408575086,1773900652346,-2000.0,0.00015342,2]
[408575087,1773900652355,-1676.1614452,0.00015342,2]
[408575088,1773900652365,-2000.0,0.00015342,2]
[408575089,1773900652375,-2000.0,0.00015342,2]
[408575090,1773900652385,-2000.0,0.00015342,2]
[408575091,1773900652395,-2000.0,0.00015342,2]
[408575092,1773900652405,-1000.0,0.00015354,2]
[408575093,1773900652415,-2653.0,0.00015357,2]
[408575094,1773900652425,-2402.0,0.0001536,2]
[408575095,1773900652435,-2402.0,0.0001536,2]
[408575096,1773900652445,-238.0,0.0001536,2]
[408575097,1773900652454,-1567.0,0.0001536,2]
[408575098,1773900652465,-350.0,0.00015364,2]
[408575099,1773900652474,-297.0,0.00015371,3]
[408575100,1773900652484,-500.0,0.00015373,2]
[408575101,1773900652493,-500.0,0.00015373,2]
[408575102,1773900652502,-1000.0,0.0001538,2]
[408575103,1773900652512,-350.0,0.00015382,2]
[408575104,1773900652522,-621.0,0.00015382,2]
[408575105,1773900652531,-1000.0,0.00015384,2]
[408575106,1773900652541,-210.72,0.00015386,2]
[408575107,1773900652550,-150.0,0.000154,2]
[408575108,1773900652560,-1000.0,0.00015418,2]
[408575109,1773900652569,-1000.0,0.0001542,2]
[408575110,1773900652579,-1000.0,0.00015424,2]
[408575111,1773900652588,-210.72,0.0001543,2]
[408575112,1773900652598,-2000.0,0.00015433,2]
[408575113,1773900652608,-1000.0,0.0001544,2]
[408575114,1773900652617,-469.0,0.00015441,2]
[408575115,1773900652627,-193.60696256,0.00015452,2]
[408575116,1773900652637,-1800.0,0.00015452,2]
[408575117,1773900652647,-1100.0,0.00015452,2]
[408575118,1773900652656,-2800.0,0.00015452,2]
[408575119,1773900652665,-1567.0,0.00015465,2]
[408575120,1773900652675,-2398.0,0.00015465,2]
[408575121,1773900652685,-210.72,0.00015474,2]
[408575122,1773900652694,-181.5975,0.00015494,30]
[408575123,1773900652703,-1300.0,0.000155,5]
[408575124,1773900652713,-152.0,0.00015502,4]
[408575125,1773900652722,-1000.0,0.00015509,2]
[408575126,1773900652732,-330.0,0.00015514,2]
[408575127,1773900652741,-150.0,0.00015515,2]
[408575128,1773900652750,-1000.0,0.00015518,2]
[408575129,1773900652759,-1600.0,0.00015524,2]
[408575130,1773900652769,-150.0,0.00015527,2]
[408575131,1773900652779,-2000.0,0.00015533,2]
[408575132,1773900652788,-500.0,0.00015534,2]
[408575133,1773900652797,-1000.0,0.00015558,2]
[408575134,1773900652806,-350.0,0.00015564,3]
[408575135,1773900652815,-469.0,0.00015578,2]
[408575136,1773900652825,-1300.0,0.000156,5]
[408575137,1773900652834,-1000.0,0.00015613,2]
[408575138,1773900652843,-1000.0,0.00015613,2]
[408575139,1773900652852,-1000.0,0.00015619,2]